Cogmind - Beta 16.1 @@@ ROGUE MODE // 2026.02.28 @ 19:57:53 Player: UniqueName Result: Destroyed by Y5-P1R(R) with Subdweller Beam Cannon Performance ------------- Evolutions (0) 0 Regions Visited (3) 600 Robots Destroyed (17) 85 Value Destroyed (606) 606 Prototype IDs (2) 40 Alien Tech Used (0) 0 Bonus (0) 0 TOTAL SCORE: 1331 Bonus ------- None Cogmind --------- Core Integrity 0/250 Matter 275/300 Energy 200/200 System Corruption 3% Temperature Cool (9) Movement Walking (120) Location -10/Subcaves Parts ------- > --- POWER (1) -------- Subdweller Power Source > --- PROPULSION (2) --- Aluminum Leg Aluminum Leg > --- UTILITY (2) ------ Small Storage Unit > --- WEAPON (2) ------- Subdweller Machine Gun Makeshift Sword > --- INVENTORY (8) ---- Ion Engine Subdweller Power Source Aluminum Leg Aluminum Leg Disposable Heat Sink Peak State ------------ > --- POWER ------------ Subdweller Power Source > --- PROPULSION ------- Aluminum Leg Aluminum Leg > --- UTILITY ---------- Improved Heat Sink Small Storage Unit > --- WEAPON ----------- EM Pulse Gun Makeshift Sword > --- INVENTORY -------- Ion Engine Aluminum Leg Aluminum Leg Aluminum Leg Aluminum Leg Aluminum Leg Subdweller Machine Gun Subdweller Machine Gun [Rating: 14] Favorites ----------- Power Ion Engine Engine Ion Engine Propulsion Light Treads Treads Light Treads Leg Aluminum Leg Wheel Subdweller Monowheel Utility Small Storage Unit Device Improved Heat Sink Storage Small Storage Unit Weapon Medium Laser Energy Gun Medium Laser Ballistic Gun Subdweller Machine Gun Slashing Weapon Makeshift Sword Build | -11 -10 -10 -10 ------- Run | Yrd Mat Min Sub Slots Evolved . | . . . . Power . | . . . . Propulsion . | . . . . Utility . | . . . . Weapon . | . . . . Parts Attached 23 | 4 3 7 9 Power 5 | 1 . 2 2 Engine 5 | 1 . 2 2 Core . | . . . . Reactor . | . . . . Propulsion 8 | 2 . 2 4 Treads 2 | 2 . . . Leg 5 | . . 2 3 Wheel 1 | . . . 1 Hover . | . . . . Flight . | . . . . Utility 3 | 1 1 1 . Device 2 | . 1 1 . Storage 1 | 1 . . . Processor . | . . . . Hackware . | . . . . Protection . | . . . . Artifact . | . . . . Weapon 7 | . 2 2 3 Energy Gun 3 | . 2 1 . Energy Cannon . | . . . . Ballistic Gun 3 | . . . 3 Ballistic Cannon . | . . . . Launcher . | . . . . Special Weapon . | . . . . Impact Weapon . | . . . . Slashing Weapon 1 | . . 1 . Piercing Weapon . | . . . . Special Melee Weapon . | . . . . Unidentified Prototypes . | . . . . Parts Lost 10 | . 1 2 7 Power 2 | . 1 . 1 Propulsion 2 | . . . 2 Utility 2 | . . 1 1 Weapon 4 | . . 1 3 Highest Loss Streak 4 | . 1 1 4 To Critical Strikes 1 | . . . 1 Average Backups 6 | 4 4 6 7 Power . | . 1 . . Propulsion 3 | 1 2 3 4 Utility . | . . . . Weapon 1 | 2 1 1 1 Tool/Special . | . . . . Unused Backups 7 | . . 2 5 Power 2 | . . 1 1 Propulsion 2 | . . . 2 Utility 1 | . . . 1 Weapon 2 | . . 1 1 Tool/Special . | . . . . Average Slot Usage (%) 94 | . 84 97 94 Engine 11 | . 8 12 11 Treads 17 | . 28 26 . Leg 9 | . . 1 26 Device 11 | . 5 13 11 Storage 14 | . 14 14 14 Energy Gun 22 | . 27 25 15 Ballistic Gun 3 | . . . 9 Slashing Weapon 1 | . . 2 2 Peak Build Rating 14 | 4 8 12 14 Average Rating 9 | 2 6 9 10 On Entrance 5 | . 4 8 10 Avg Prop Armor Cover (%) 12 | . . . 12 Naked Turns . | . . . . Heaviest Build 19 | 8 11 15 19 Greatest Support 40 | 40 40 40 20 Greatest Overweight (x) 1 | . . 1 1 Average Overweight (x) . | . . . . Largest Inventory Capacity 8 | 8 8 8 8 Average Capacity 7 | 6 8 8 8 Most Carried 8 | 6 6 8 8 Average Carried 6 | 5 4 6 7 Final Capacity 8 | 8 8 8 8 Final Carried 8 | 6 6 8 5 Class Distribution -------------------- 66% | Mutant 33% | Scavenger-Mutant Dominant Class ---------------- Mutant | -10/Materials Mutant | -10/Mines Scavenger-Mutant | -10/Subcaves Resources | -11 -10 -10 -10 ----------- Run | Yrd Mat Min Sub Matter Collected 527 | 240 25 116 146 Remotely . | . . . . Salvage Created 668 | . 80 363 225 Parts 31 | . 2 15 14 Haulers Intercepted . | . . . . Recyclers Shooed . | . . . . Parts Field Recycled . | . . . . Retrieved Matter . | . . . . Parts Self-Destructed 2 | . . . 2 Prevented 1 | . . . 1 Parts Restored . | . . . . Kills | -11 -10 -10 -10 ------- Run | Yrd Mat Min Sub Combat Hostiles Destroyed 18 | . 2 10 6 Melee 2 | . . 1 1 Guns 16 | . 2 9 5 Classes Destroyed 4 | . 1 2 1 Swarmer 2 | . . 2 . Grunt 11 | . 2 7 2 Subdweller 4 | . . . 4 Assembled 1 | . . 1 . Best Kill Streak 4 | . 2 4 2 Combat Bots Only 4 | . 2 4 2 Max Kills in Single Turn 1 | . 1 1 1 Gunslinging . | . . . . Exploded . | . . . . Melee 1 | . . 1 1 Uniques/NPCs Destroyed . | . . . . Combat | -11 -10 -10 -10 -------- Run | Yrd Mat Min Sub Hostile Shots Fired 118 | . 10 42 66 Missed 32 | . 3 10 19 Hits 86 | . 7 32 47 Melee 2 | . . 2 . Projectile 84 | . 7 30 47 AOE 2 | . . . 2 Critical Strikes 5 | . . . 5 Damage Taken 1536 | . 94 433 1009 Core 278 | . 11 28 239 Absorbed by Shields . | . . . . Core Remaining (%) 100 | 100 . . . Volleys Fired 82 | . 7 34 41 Largest 2 | . 2 2 2 Hottest 90 | . 90 90 90 Shots Fired 130 | . 14 58 58 Gun 130 | . 14 58 58 Cannon . | . . . . Launcher . | . . . . Special . | . . . . Kinetic 44 | . . . 44 Thermal 58 | . 14 41 3 Explosive . | . . . . Electromagnetic 28 | . . 17 11 Robot Hit Streak 9 | . 4 9 5 Robot Miss Streak 3 | . 1 3 3 Penetration Max . | . . . . Secondary Targets 2 | . . 2 . Max Gunslinging Chain 1 | . . 1 . Shots Hit Robots 89 | . 10 45 34 Core Hits 34 | . 5 19 10 Critical Kills 1 | . . . 1 Critical Parts Destroyed . | . . . . Critical Strikes 2 | . . 1 1 Burn 1 | . . 1 . Destroy 1 | . . . 1 Melee Attacks 29 | . . 25 4 Impact . | . . . . Slashing 29 | . . 25 4 Piercing . | . . . . Sneak Attacks . | . . . . Combat Hostiles . | . . . . Follow-up Attacks . | . . . . Damage Inflicted 1377 | . 121 618 638 Guns 1182 | . 121 533 528 Cannons . | . . . . Explosions . | . . . . Melee 195 | . . 85 110 Ramming . | . . . . Kinetic 434 | . . . 434 Thermal 464 | . 121 343 . Explosive . | . . . . Electromagnetic 284 | . . 190 94 Impact . | . . . . Slashing 195 | . . 85 110 Piercing . | . . . . Highest Corruption 3 | . . 3 3 Average Corruption 3 | . . 3 3 Corruption Purged . | . . . . Corruption Blocked . | . . . . Effects 10 | . . 2 8 Message Errors 3 | . . . 3 Matter Fused 3 | . . 2 1 Heat Flow Errors 2 | . . . 2 Data Loss (minor) 1 | . . . 1 Misfires 1 | . . . 1 Overload Shots . | . . . . Overflow Damage 3 | . . 3 . Projectiles . | . . . . Explosions . | . . . . Melee 3 | . . 3 . Knockbacks . | . . . . Impact . | . . . . Kinetic . | . . . . Secondary . | . . . . Self-Inflicted Damage . | . . . . Shots . | . . . . Rammed . | . . . . Targets Rammed . | . . . . Kicked . | . . . . Crushed . | . . . . Highest Temperature 197 | . 197 10 144 Average Temperature 69 | . 117 4 86 Received Heat Transfer 558 | . 51 195 312 Siege Activations . | . . . . Martial Activations . | . . . . Shielding Activations . | . . . . Robots Disrupted . | . . . . Combat Hostiles . | . . . . Robots Corrupted . | . . . . Combat Hostiles . | . . . . Parts Fried . | . . . . Impact Corruptions . | . . . . Robots Melted . | . . . . Combat Hostiles . | . . . . Parts Melted 4 | . 1 3 . Heat Transferred 1372 | . 322 1050 . Parts Sabotaged . | . . . . Parts Stolen . | . . . . Parts Stripped . | . . . . Power Chain Reactions . | . . . . Alert | -11 -10 -10 -10 ------- Run | Yrd Mat Min Sub Maximum Alert Level . | . . . . Low Security (%) 100 | 100 100 100 . Level 1 . | . . . . Level 2 . | . . . . Level 3 . | . . . . Level 4 . | . . . . Level 5 . | . . . . High Security . | . . . . Max Security . | . . . . Peak Influence 74 | . 40 74 . Initial . | . . . . Average 9 | . 5 10 . Influence Increases 318 | . 58 210 50 Destroy 0b10 Robot/C 260 | . 40 180 40 Destroy Leader 50 | . 10 30 10 Successful Hack 8 | . 8 . . Influence Decreases 318 | . 58 154 106 Entered New Map 30 | . . . 30 Time Decay 248 | . 38 144 66 Lost Part 30 | . 10 10 10 Purge Threat 10 | . 10 . . Squads Dispatched . | . . . . Investigation . | . . . . Extermination . | . . . . Reinforcement . | . . . . Assault . | . . . . Garrison . | . . . . Intercept . | . . . . Searches Triggered . | . . . . Construction Impeded . | . . . . Haulers Reinforced . | . . . . Active Scanning Responses . | . . . . Cargo Convoy Interrupts . | . . . . Stealth | -11 -10 -10 -10 --------- Run | Yrd Mat Min Sub Distress Signals 1 | . 1 . . Communications Jammed . | . . . . Distress Signals . | . . . . Times Spotted 24 | . 4 11 9 Peak Tracking Total 4 | . 3 4 2 Tactical Retreats . | . . . . Traps | -11 -10 -10 -10 ------- Run | Yrd Mat Min Sub Traps Triggered . | . . . . Indirectly . | . . . . Trap Hack Attempts . | . . . . Triggered . | . . . . Disarmed . | . . . . Reprogrammed . | . . . . Reused . | . . . . Traps Extracted . | . . . . Installed . | . . . . Triggered . | . . . . Machines | -11 -10 -10 -10 ---------- Run | Yrd Mat Min Sub Machines Disabled . | . . . . Max in Single Turn . | . . . . Machines Repaired . | . . . . Machines Dismantled . | . . . . Machines Sabotaged . | . . . . Overloaded Fab Kills . | . . . . Hacking | -11 -10 -10 -10 --------- Run | Yrd Mat Min Sub Machines Accessed 3 | . 3 . . Terminals 3 | . 3 . . Fabricators . | . . . . Repair Stations . | . . . . Recycling Units . | . . . . Scanalyzers . | . . . . Garrison Access . | . . . . Total Hacks 11 | . 11 . . Successful 3 | . 3 . . Failed 8 | . 8 . . Catastrophic 1 | . 1 . . Database Lockouts . | . . . . Manual 2 | . 2 . . Terminals 11 | . 11 . . Fabricators . | . . . . Repair Stations . | . . . . Recycling Units . | . . . . Scanalyzers . | . . . . Garrison Access . | . . . . Terminal Hacks 3 | . 3 . . Prototype ID Bank 1 | . 1 . . Level Access Points 1 | . 1 . . Unreport Threat 1 | . 1 . . Fabricator Hacks . | . . . . Repair Station Hacks . | . . . . Recycling Unit Hacks . | . . . . Scanalyzer . | . . . . Garrison Access Hacks . | . . . . Unauthorized Hacks . | . . . . Terminals . | . . . . Fabricators . | . . . . Repair Stations . | . . . . Recycling Units . | . . . . Scanalyzers . | . . . . Garrison Access . | . . . . Data Cores Recovered . | . . . . Used . | . . . . Hacking Detections 3 | . 3 . . Full Trace Events 1 | . 1 . . Feedback Events . | . . . . Feedback Blocked . | . . . . Robot Schematics Acquired . | . . . . Robots Built . | . . . . Authchips . | . . . . Time . | . . . . Total Robot Build Rating . | . . . . Part Schematics Acquired . | . . . . Parts Built . | . . . . Authchips . | . . . . Time . | . . . . Total Part Build Rating . | . . . . Part Studies Acquired . | . . . . Parts Repaired . | . . . . Time . | . . . . Parts Recycled . | . . . . Recycled Matter . | . . . . Retrieved Matter . | . . . . Retrieved Components . | . . . . Parts Scanalyzed . | . . . . Part Schematics Acquired . | . . . . Parts Damaged . | . . . . Bothacking | -11 -10 -10 -10 ------------ Run | Yrd Mat Min Sub Used RIF Installer . | . . . . Robots Hacked . | . . . . Non-combat . | . . . . Combat . | . . . . Robot Hacks Applied . | . . . . Relay Couplers Released . | . . . . Fabnet Peak Effective % . | . . . . Robots Rewired . | . . . . Allies Hacked . | . . . . Hacks Repelled . | . . . . Allies | -11 -10 -10 -10 -------- Run | Yrd Mat Min Sub Total Allies . | . . . . Largest Group . | . . . . Highest-Rated Group . | . . . . Highest-Rated Ally . | . . . . Total Orders . | . . . . Ally Attacks . | . . . . Total Damage . | . . . . Kills . | . . . . Allies Corrupted . | . . . . Allies Melted . | . . . . Intel | -11 -10 -10 -10 ------- Run | Yrd Mat Min Sub Active Infowar (turns) . | . . . . Robot Analysis Total . | . . . . Derelict Logs Recovered 3 | . . 2 1 Drone Launches . | . . . . Drone Recoveries . | . . . . Exploration | -11 -10 -10 -10 ------------- Run | Yrd Mat Min Sub Turns Passed 1848 | 85 273 903 587 Spaces Moved 1050 | 59 155 463 373 Core 19 | 19 . . . Treads 629 | 40 155 434 . Legs 355 | . . 29 326 Wheels 47 | . . . 47 Hover . | . . . . Flight . | . . . . Fastest Speed 50 | 50 160 120 110 Average Speed 142 | 124 160 157 118 Slowest Speed 190 | 160 160 190 190 Overloaded Moves . | . . . . Propulsion Burnouts . | . . . . Robots Hopped . | . . . . Potential Cave-ins . | . . . . Cave-ins Triggered . | . . . . Exploration Rate (%) 37 | 4 30 88 28 Regions Visited 3 Branch Regions 2 Pre-discovered Areas 2 | . . 1 1 Known Exits Taken . | . . . . Unknown Exits Taken 3 | 1 1 1 . Scrap Searched 2 | . . 2 . Spaces Dug . | . . . . Terrain Destroyed . | . . . . Melee . | . . . . Projectile . | . . . . AOE . | . . . . Terrain Rammed . | . . . . Walls Destroyed . | . . . . Machines Disabled . | . . . . Actions | -11 -10 -10 -10 --------- Run | Yrd Mat Min Sub Total 1239 | 69 166 550 454 Wait 19 | . . 6 13 Move 1047 | 58 154 462 373 Hop . | . . . . Pick Up 21 | 7 2 7 5 Fast Attach 10 | 3 1 2 4 Attach 9 | 1 2 3 3 Detach 1 | . . . 1 Swap 10 | . . 6 4 Drop 11 | . . 5 6 Fire 82 | . 7 34 41 Melee 29 | . . 25 4 Ram . | . . . . Kick . | . . . . Crush . | . . . . Escape Stasis . | . . . . Rewire . | . . . . Trap . | . . . . Miscellaneous . | . . . . Route ------- -11/Scrapyard -10/Materials (discovered 4 exits: *Mat x3 / [*Min]) -10/Mines (discovered 3 exits: *Mat x2 / [*Sub]) -10/Subcaves (discovered 1 exit: [*Mat]) History --------- Turn | Location | Event 6 | -11/Scrapyard | Discovered new exit (range 15) 86 | -11/Scrapyard | Entered Materials 183 | -10/Materials | Discovered new exit (range 11) 189 | -10/Materials | Identified exit to Materials 308 | -10/Materials | Build established: Mutant 326 | -10/Materials | Discovered new exit (range 12) 359 | -10/Materials | Entered Mines 442 | -10/Mines | Discovered exit to Materials (range 7) 578 | -10/Mines | A weapon hastily lodged in a ceiling crevice suddenly fell to the ground 670 | -10/Mines | Learned location of Mines (-9) 686 | -10/Mines | Discovered exit to Materials (range 8) 929 | -10/Mines | Excavation squad dispatched 929 | -10/Mines | A large section of the Mines collapsed 1215 | -10/Mines | Discovered new exit (range 9) 1262 | -10/Mines | Entered Subcaves 1263 | -10/Subcaves | Approached by a straggling Scientist 1449 | -10/Subcaves | Learned location of Zion (-7) 1549 | -10/Subcaves | Build established: Scavenger-Mutant 1603 | -10/Subcaves | Discovered new exit (range 4) 1748 | -10/Subcaves | Core integrity fell below 50% 1795 | -10/Subcaves | Lost 4 parts (1n1u2w) 1842 | -10/Subcaves | Core integrity fell below 20% 1849 | -10/Subcaves | Destroyed by Y5-P1R(R) with Subdweller Beam Cannon Last Messages --------------- 01750_ GO-IJD(R) destroyed. 01754_ Acquired Sub. Machine Gun. 01758_ YU-SUR(u) tweaks Twisted Machinery. 01761_ R1-F48(R) affixes Scrap Shield Fragment to Scrap Shield. 01761_ YU-SUR(u) tweaks Twisted Machinery. 01763_ Acquired 27 matter. 01764_ Aluminum Leg destroyed. 01768_ R1-F48(R) suffers critical hit (Destroy). 01768_ R1-F48(R) destroyed. 18-P9I(c): "I think it's somewhere southeast of here" 01772_ Acquired Sub. Monowheel. 01776_ Acquired Sub. Power Source. 01778_ Acquired 24 matter. 01781_ XO5TYLS:>NEITJBP4#/R8JI,WASR 01783_ Acquired Sub. Power Source. 01787_ Acquired Disposable Heat Sink. 18-P9I(c): "I think it's somewhere southeast of here" 01826_ YU-SUR(u) tweaks Twisted Machinery. 01833_ Critical hit (Destroy). 01833_ Sub. Monowheel destroyed. Map ----- +----------------------------------------------------+ | ? ??## ##????????????????????????????????? | | ## ###??????????????????????????????? | | #??????????????????????????????? | | ### ###??????????????????????????????? | | ??# #????????????????????????????????? | | ?#" #????????????????????????????????? | | ##" ##????????????????????????????????? | | #" ##?????????????????????????????????? | | " ! "#??????????????????????????????????? | | ### != #??????????????????????????????????? | | ???#" = #??????????????????????????????????? | | ???#" #??????????????????????????????????? | | ???# #??????????????????????????????????? | | ???####" #####??????????????????????????????????? | | ??????##" ##########?????????????????????????????? | | ???????# "" ####??????????????????????????? | | ???????# " #?????????????????????????? | | ???????# ### ## ####?????????????????????? | | ??????## #???#??? ##????????????????????? | | ??????# ##?????? ##???????????????????? | | ??????# #??????? ????????????????????? | | ??????## ##????????# R ?????????????????????? | | ??????# #?????????#" ??????????????????????? | | ??##### #####??##??#"" #??????????????????????? | | ??# ## ### #??#"" #??????????????????????? | | ?## #??###R @#??????????????????????? | | ## & ##" #### " ;#?????????????????????? | | %#### # #### #?????????????? | | !##??##### " c #?????????????? | | # #???????# """# ##???????????????? | | # ##???????# ##### ##????????????????? | | ?????????### ##???### ###?????????????????? | | ?????# # ##??????# #???????????????????? | | #?????# #??????? #???????????????????? | | ??# "" ##??????? #??????????????????? | | ? ""# # ##????????# ##??????????????????? | | ? ?####???????????##???????????????????? | | ## ?? ??????????????????????????????????????? | | ?# ???? ???????????????????????????????????????? | | ?##???? ????????????????????????????????????????? | | ?????????????????????????????????????????????????? | | ?????????????????????????????????????????????????? | | ?????????????????????????????????????????????????? | | ?????????????????????????????????????????????????? | | ?????????????????????????????????????????????????? | | ?????????????????????????????????????????????????? | | ?????????????????????????????????????????????????? | | ?????????????????????????????????????????????????? | | ?????????????????????????????????????????????????? | | ?????????????????????????????????????????????????? | +----------------------------------------------------+ Best States ------------- Heat Dissipation 39 Energy Generation 15 Energy Capacity 250 Matter Stores 300 Matter Capacity 300 Sight Range 16 Terrain Scan Density 10 Evasion (%) 55 Recoil Reduction 2 Item Schematics ----------------- None Robot Schematics ------------------ None Fabricated ------------ Nothing Repaired ---------- Nothing Studied --------- None Alien Tech Used ----------------- None Achievements -------------- None Challenges ------------ None Game ------ Seed AerolevSiegeBay Manual? 0 Play Time 00:14:22 Cumulative 27.5 hours Start 2026.02.28 @ 19:44:44 End 2026.02.28 @ 19:57:53 Sessions 1 Manual Loads 0 Difficulty Rogue Special Mode None Game No. 30 Rogue 30 Adventurer 0 Explorer 0 Win Type - Total 0 Types 0/0/0/0/0/0/0/0/0/0 Lore% 22 Gallery% 27 Achievement% 25 Wizard Run 0 Options --------- Layout 0 ASCII 0 Keyboard 0 Movement Arrows Keybinds 0 Fullscreen 1 Font 18/SmallcapsGlow Map View 76x50 Zoom Use 0% Tactical HUD 1 Map Filters NONE Filters NONE Steam 1 RUN: 8fbd1c88-c45a-4416-8015-5bcbda1f584a